lending/lending_fUSD_20250429
["ID","MTS","AMOUNT","RATE_DAILY","PERIOD"]
[359343947,1745946644050,-470.0,0.00027671,2]
[359343948,1745946644059,-500.0,0.00027671,2]
[359343949,1745946644069,-470.0,0.00027671,2]
[359343950,1745946644079,-470.0,0.00027671,2]
[359343951,1745946644088,-1158.93,0.00027671,2]
[359343952,1745946644098,-229.59079778,0.00027671,2]
[359343953,1745946644107,-470.0,0.00027671,2]
[359343954,1745946644117,-600.27,0.00027671,2]
[359343955,1745946644127,-530.0,0.00027671,2]
[359343956,1745946644136,-480.75,0.00027671,2]
[359343957,1745946644146,-828.51,0.00027671,2]
[359343958,1745946644155,-470.0,0.00027671,2]
[359343959,1745946644165,-470.0,0.00027671,2]
[359343960,1745946644175,-470.0,0.00027671,2]
[359343961,1745946644186,-569.9,0.00027671,2]
[359343962,1745946644197,-470.0,0.00027671,2]
[359343963,1745946644207,-165.32308107,0.00027671,2]
[359343964,1745946644217,-1775.54,0.00027671,2]
[359343965,1745946644226,-989.38,0.00027671,2]
[359343966,1745946644235,-743.53,0.00027671,2]
[359343967,1745946644245,-470.0,0.00027671,2]
[359343968,1745946644254,-470.0,0.00027671,2]
[359343969,1745946644264,-470.0,0.00027671,2]
[359343970,1745946644273,-533.85,0.00027671,2]
[359343971,1745946644283,-470.0,0.00027671,2]
[359343972,1745946644292,-530.0,0.00027671,2]
[359343973,1745946644302,-470.0,0.00027671,2]
[359343974,1745946644312,-470.0,0.00027671,2]
[359343975,1745946644321,-470.0,0.00027671,2]
[359343976,1745946644331,-512.19,0.00027671,2]
[359343977,1745946644341,-876.37,0.00027671,2]
[359343978,1745946644351,-825.85,0.00027671,2]
[359343979,1745946644361,-470.0,0.00027671,2]
[359343980,1745946644370,-888.63,0.00027671,2]
[359343981,1745946644380,-470.0,0.00027671,2]
[359343982,1745946644389,-720.21,0.00027671,2]
[359343983,1745946644399,-381.06267849,0.00027671,2]
[359343984,1745946644408,-530.0,0.00027671,2]
[359343985,1745946644417,-592.42,0.00027671,2]
[359343986,1745946644426,-470.0,0.00027671,2]
[359343987,1745946644435,-470.0,0.00027671,2]
[359343988,1745946644444,-470.0,0.00027671,2]
[359343989,1745946644453,-470.0,0.00027671,2]
[359343990,1745946644462,-470.0,0.00027671,2]
[359343991,1745946644472,-1663.01,0.00027671,2]
[359343992,1745946644481,-715.99,0.00027671,2]
[359343993,1745946644490,-151.0,0.00027671,7]
[359343994,1745946644499,-151.0,0.00027671,7]
[359343995,1745946644508,-971.57,0.00027671,2]
[359343996,1745946644517,-470.0,0.00027671,2]
[359343997,1745946644526,-470.0,0.00027671,2]
[359343998,1745946644535,-470.0,0.00027671,2]
[359343999,1745946644545,-470.0,0.00027671,2]
[359344000,1745946644553,-642.99,0.00027671,2]
[359344001,1745946644562,-470.0,0.00027671,2]
[359344002,1745946644571,-470.0,0.00027671,2]
[359344003,1745946644580,-151.0,0.00027671,7]
[359344004,1745946644589,-470.0,0.00027671,2]
[359344005,1745946644598,-470.0,0.00027671,2]
[359344006,1745946644607,-470.0,0.00027671,2]
[359344007,1745946644617,-470.0,0.00027671,2]
[359344008,1745946644626,-470.0,0.00027671,2]
[359344009,1745946644635,-570.97,0.00027671,2]
[359344010,1745946644644,-695.71,0.00027671,2]
[359344011,1745946644653,-470.0,0.00027671,2]
[359344012,1745946644662,-470.0,0.00027671,2]
[359344013,1745946644671,-292.02946774,0.00027671,2]
[359344014,1745946644680,-470.0,0.00027671,2]
[359344015,1745946644690,-700.74,0.00027671,2]
[359344016,1745946644699,-470.0,0.00027671,2]
[359344017,1745946644708,-470.0,0.00027671,2]
[359344018,1745946644717,-151.0,0.00027671,7]
[359344019,1745946644727,-151.0,0.00027671,7]
[359344020,1745946644736,-783.85,0.00027671,2]
[359344021,1745946644746,-672.49774218,0.00027671,2]
[359344022,1745946644755,-286.466535,0.00027671,7]
[359344023,1745946644764,-700.22,0.00027671,2]
[359344024,1745946644773,-470.0,0.00027671,2]
[359344025,1745946644782,-470.0,0.00027671,2]
[359344026,1745946644792,-1807.3,0.00027671,2]
[359344027,1745946644802,-470.0,0.00027671,2]
[359344028,1745946644812,-824.71,0.00027671,2]
[359344029,1745946644822,-690.41,0.00027671,2]
[359344030,1745946644831,-470.0,0.00027671,2]
[359344031,1745946644841,-470.0,0.00027671,2]
[359344032,1745946644851,-470.0,0.00027671,2]
[359344033,1745946644861,-470.0,0.00027671,2]
[359344034,1745946644871,-8083.38,0.00027671,2]
[359344035,1745946644881,-470.0,0.00027671,2]
[359344036,1745946644891,-470.0,0.00027671,2]
[359344037,1745946644901,-605.11,0.00027671,2]
[359344038,1745946644911,-470.0,0.00027671,2]
[359344039,1745946644921,-151.0,0.00027671,7]
[359344040,1745946644932,-229.459817,0.00027671,7]
[359344041,1745946644942,-470.0,0.00027671,2]
[359344042,1745946644951,-600.82,0.00027671,2]
[359344043,1745946644960,-738.0,0.00027671,2]
[359344044,1745946644969,-1573.39,0.00027671,2]
[359344045,1745946644982,-470.0,0.00027671,2]
[359344046,1745946644991,-545.56344584,0.00027671,2]
[359344047,1745946645000,-15556.38,0.00027671,2]
[359344048,1745946645010,-470.0,0.00027671,2]
[359344049,1745946645019,-470.0,0.00027671,2]
[359344050,1745946645028,-470.0,0.00027671,2]
[359344051,1745946645038,-873.21,0.00027671,2]
[359344052,1745946645047,-653.85,0.00027671,2]
[359344053,1745946645057,-470.0,0.00027671,2]
[359344054,1745946645066,-470.0,0.00027671,2]
[359344055,1745946645075,-470.0,0.00027671,2]
[359344056,1745946645084,-470.0,0.00027671,2]
[359344057,1745946645093,-470.0,0.00027671,2]
[359344058,1745946645102,-882.89,0.00027671,2]
[359344059,1745946645111,-470.0,0.00027671,2]
[359344060,1745946645121,-719.83,0.00027671,2]
[359344061,1745946645130,-807.35,0.00027671,2]
[359344062,1745946645141,-470.0,0.00027671,2]
[359344063,1745946645150,-654.75,0.00027671,2]
[359344064,1745946645160,-470.0,0.00027671,2]
[359344065,1745946645171,-151.0,0.00027671,7]
[359344066,1745946645180,-151.0,0.00027671,7]
[359344068,1745946645194,-610.55,0.00027671,2]
[359344069,1745946645203,-470.0,0.00027671,2]
[359344070,1745946645212,-593.23,0.00027671,2]
[359344071,1745946645221,-470.0,0.00027671,2]
[359344072,1745946645232,-470.0,0.00027671,2]
[359344073,1745946645242,-470.0,0.00027671,2]
[359344074,1745946645251,-509.64,0.00027671,2]
[359344075,1745946645261,-530.0,0.00027671,2]
[359344076,1745946645271,-470.0,0.00027671,2]
[359344077,1745946645280,-470.0,0.00027671,2]
[359344078,1745946645289,-978.08,0.00027671,2]
[359344079,1745946645299,-781.68,0.00027671,2]
[359344080,1745946645308,-470.0,0.00027671,2]
[359344081,1745946645317,-470.0,0.00027671,2]
[359344082,1745946645327,-1521.18,0.00027671,2]
[359344083,1745946645336,-609.07,0.00027671,2]
[359344084,1745946645345,-623.29,0.00027671,2]
[359344085,1745946645354,-1076.85,0.00027671,2]
[359344086,1745946645364,-470.0,0.00027671,2]
[359344087,1745946645373,-1033.91,0.00027671,2]
[359344088,1745946645382,-1113.52,0.00027671,2]
[359344089,1745946645391,-470.0,0.00027671,2]
[359344090,1745946645401,-470.0,0.00027671,2]
[359344091,1745946645412,-469.12101967,0.00027671,2]
[359344092,1745946645421,-402.68030597,0.00027671,2]
[359344093,1745946645431,-470.0,0.00027671,2]
[359344094,1745946645441,-1107.01,0.00027671,2]
[359344095,1745946645450,-470.0,0.00027671,2]
[359344096,1745946645462,-613.5,0.00027671,2]
[359344097,1745946645472,-150.0,0.00027671,2]
[359344098,1745946645482,-470.0,0.00027671,2]
[359344099,1745946645491,-4648.92,0.00027671,2]
[359344100,1745946645501,-470.0,0.00027671,2]
[359344101,1745946645511,-470.0,0.00027671,2]
[359344102,1745946645521,-1015.66,0.00027671,2]
[359344103,1745946645530,-470.0,0.00027671,2]
[359344104,1745946645540,-802.91,0.00027671,2]
[359344105,1745946645550,-553.20939783,0.00027671,2]
[359344106,1745946645559,-833.9,0.00027671,2]
[359344107,1745946645569,-470.0,0.00027671,2]
[359344108,1745946645578,-502.17,0.00027671,2]
[359344109,1745946645588,-2447.99,0.00027671,2]
[359344110,1745946645599,-470.0,0.00027671,2]
[359344111,1745946645608,-470.0,0.00027671,2]
[359344112,1745946645617,-470.0,0.00027671,2]
[359344113,1745946645626,-2885.7,0.00027671,2]
[359344114,1745946645635,-433.22141459,0.00027671,2]
[359344115,1745946645645,-470.0,0.00027671,2]
[359344116,1745946645654,-614.61,0.00027671,2]
[359344117,1745946645663,-470.0,0.00027671,2]
[359344118,1745946645672,-613.23,0.00027671,2]
[359344119,1745946645682,-470.0,0.00027671,2]
[359344120,1745946645691,-2481.7,0.00027671,2]
[359344121,1745946645700,-470.0,0.00027671,2]
[359344122,1745946645709,-470.0,0.00027671,2]
[359344123,1745946645718,-470.0,0.00027671,2]
[359344124,1745946645728,-470.0,0.00027671,2]
[359344125,1745946645737,-470.0,0.00027671,2]
[359344126,1745946645746,-1347.18,0.00027671,2]
[359344127,1745946645755,-470.0,0.00027671,2]
[359344128,1745946645764,-470.0,0.00027671,2]
[359344129,1745946645773,-776.92,0.00027671,2]
[359344130,1745946645782,-470.0,0.00027671,2]
[359344131,1745946645791,-470.0,0.00027671,2]
[359344132,1745946645800,-470.0,0.00027671,2]
[359344133,1745946645809,-470.0,0.00027671,2]
[359344134,1745946645818,-470.0,0.00027671,2]
[359344135,1745946645827,-864.24,0.00027671,2]
[359344136,1745946645836,-152.94463771,0.00027671,2]
[359344137,1745946645845,-3036.85,0.00027671,2]
[359344138,1745946645855,-470.0,0.00027671,2]
[359344139,1745946645864,-470.0,0.00027671,2]
[359344140,1745946645873,-470.0,0.00027671,2]
[359344141,1745946645883,-470.0,0.00027671,2]
[359344142,1745946645892,-470.0,0.00027671,2]
[359344143,1745946645902,-151.0,0.00027671,7]
[359344144,1745946646068,-151.0,0.00027671,7]
[359344145,1745946646079,-151.0,0.00027671,7]
[359344146,1745946646089,-723.05,0.00027671,2]
[359344147,1745946646098,-1409.09,0.00027671,2]
[359344148,1745946646108,-470.0,0.00027671,2]
[359344149,1745946646118,-470.0,0.00027671,2]
[359344150,1745946646128,-470.0,0.00027671,2]
[359344151,1745946646137,-656.63,0.00027671,2]
[359344152,1745946646147,-651.63,0.00027671,2]
[359344153,1745946646156,-594.39,0.00027671,2]
[359344154,1745946646166,-2157.65,0.00027671,2]
[359344155,1745946646176,-470.0,0.00027671,2]
[359344156,1745946646185,-470.0,0.00027671,2]
[359344157,1745946646198,-642.31,0.00027671,2]
[359344158,1745946646207,-470.0,0.00027671,2]
[359344159,1745946646216,-470.0,0.00027671,2]
[359344160,1745946646225,-1519.41,0.00027671,2]
[359344161,1745946646235,-488.62,0.00027671,2]
[359344162,1745946646244,-470.0,0.00027671,2]
[359344163,1745946646254,-1072.93,0.00027671,2]
[359344164,1745946646263,-470.0,0.00027671,2]
[359344165,1745946646272,-470.0,0.00027671,2]
[359344166,1745946646282,-470.0,0.00027671,2]
[359344167,1745946646291,-183.022425,0.00027671,7]
[359344168,1745946646300,-183.022425,0.00027671,7]
[359344169,1745946646309,-470.0,0.00027671,2]
[359344170,1745946646319,-470.0,0.00027671,2]
[359344171,1745946646328,-470.0,0.00027671,2]
[359344172,1745946646337,-969.41,0.00027671,2]
[359344173,1745946646346,-506.76,0.00027671,2]
[359344174,1745946646356,-470.0,0.00027671,2]
[359344175,1745946646365,-861.49,0.00027671,2]
[359344176,1745946646374,-183.022425,0.00027671,7]
[359344177,1745946646384,-183.022425,0.00027671,7]
[359344178,1745946646393,-1677.31,0.00027671,2]
[359344179,1745946646402,-1174.91,0.00027671,2]
[359344180,1745946646411,-470.0,0.00027671,2]
[359344181,1745946646421,-470.0,0.00027671,2]
[359344182,1745946646429,-748.47,0.00027671,2]
[359344183,1745946646439,-470.0,0.00027671,2]
[359344184,1745946646448,-470.0,0.00027671,2]
[359344185,1745946646457,-357.21117141,0.00027671,2]
[359344186,1745946646467,-470.0,0.00027671,2]
[359344187,1745946646476,-470.0,0.00027671,2]
[359344188,1745946646485,-623.25,0.00027671,2]
[359344189,1745946646494,-1316.54,0.00027671,2]
[359344190,1745946646503,-3336.25,0.00027671,2]
[359344191,1745946646513,-1660.91,0.00027671,2]
[359344192,1745946646523,-470.0,0.00027671,2]
[359344193,1745946646532,-292.04475871,0.00027671,2]
[359344194,1745946646541,-3275.58,0.00027671,2]
[359344195,1745946646551,-588.09,0.00027671,2]
[359344196,1745946646560,-1213.97,0.00027671,2]
[359344197,1745946646570,-470.0,0.00027671,2]
[359344198,1745946646579,-873.78,0.00027671,2]
[359344199,1745946646588,-470.0,0.00027671,2]
[359344200,1745946646597,-470.0,0.00027671,2]
[359344201,1745946646607,-601.81,0.00027671,2]
[359344202,1745946646616,-691.35,0.00027671,2]
[359344203,1745946646626,-831.4,0.00027671,2]
[359344204,1745946646635,-470.0,0.00027671,2]
[359344205,1745946646645,-470.0,0.00027671,2]
[359344206,1745946646654,-1001.99,0.00027671,2]
[359344207,1745946646663,-470.0,0.00027671,2]
[359344208,1745946646672,-470.0,0.00027671,2]
[359344209,1745946646681,-470.0,0.00027671,2]
[359344210,1745946646691,-470.0,0.00027671,2]
[359344211,1745946646700,-812.69,0.00027671,2]
[359344212,1745946646709,-470.0,0.00027671,2]
[359344213,1745946646718,-568.54,0.00027671,2]
[359344214,1745946646729,-851.3,0.00027671,2]
[359344215,1745946646738,-820.55,0.00027671,2]
[359344216,1745946646747,-470.0,0.00027671,2]
[359344217,1745946646756,-749.52,0.00027671,2]
[359344218,1745946646765,-801.96,0.00027671,2]
[359344219,1745946646775,-470.0,0.00027671,2]
[359344220,1745946646784,-470.0,0.00027671,2]
[359344221,1745946646794,-9718.3,0.00027671,2]
[359344222,1745946646802,-613.25,0.00027671,2]
[359344223,1745946646812,-470.0,0.00027671,2]
[359344224,1745946646820,-470.0,0.00027671,2]
[359344225,1745946646830,-470.0,0.00027671,2]
[359344226,1745946646839,-656.07,0.00027671,2]
[359344227,1745946646848,-470.0,0.00027671,2]
[359344228,1745946646857,-678.43,0.00027671,2]
[359344229,1745946646865,-470.0,0.00027671,2]
[359344230,1745946646875,-470.0,0.00027671,2]
[359344231,1745946646884,-594.62,0.00027671,2]
[359344232,1745946646893,-1184.37,0.00027671,2]
[359344233,1745946646903,-667.04,0.00027671,2]
[359344234,1745946646912,-1719.35,0.00027671,2]
[359344235,1745946646921,-781.33,0.00027671,2]
[359344236,1745946646931,-507.09,0.00027671,2]
[359344237,1745946646940,-852.07,0.00027671,2]
[359344238,1745946646950,-672.94,0.00027671,2]
[359344239,1745946646959,-858.82,0.00027671,2]
[359344240,1745946646969,-470.0,0.00027671,2]
[359344241,1745946646980,-1660.74,0.00027671,2]
[359344242,1745946646989,-470.0,0.00027671,2]
[359344243,1745946646999,-701.35,0.00027671,2]
[359344244,1745946647008,-470.0,0.00027671,2]
[359344245,1745946647018,-470.0,0.00027671,2]
[359344246,1745946647027,-551.49,0.00027671,2]
[359344247,1745946647037,-384.19,0.00027671,2]
[359344248,1745946647046,-1172.55,0.00027671,2]
[359344249,1745946647056,-330.0,0.00027671,2]
[359344250,1745946647066,-470.0,0.00027671,2]
[359344251,1745946647076,-682.23,0.00027671,2]
[359344252,1745946647085,-470.0,0.00027671,2]
[359344253,1745946647094,-470.0,0.00027671,2]
[359344254,1745946647103,-487.56,0.00027671,2]
[359344255,1745946647112,-151.0,0.00027671,7]
[359344256,1745946647122,-894.34,0.00027671,2]
[359344257,1745946647131,-503.3,0.00027671,2]
[359344258,1745946647140,-470.0,0.00027671,2]
[359344259,1745946647149,-470.0,0.00027671,2]
[359344260,1745946647159,-631.72,0.00027671,2]
[359344261,1745946647168,-634.28,0.00027671,2]
[359344262,1745946647177,-1263.57,0.00027671,2]
[359344263,1745946647187,-9944.47,0.00027671,2]
[359344264,1745946647199,-937.96,0.00027671,2]
[359344265,1745946647208,-470.0,0.00027671,2]
[359344266,1745946647217,-470.0,0.00027671,2]
[359344267,1745946647228,-470.0,0.00027671,2]
[359344268,1745946647238,-511.67,0.00027671,2]
[359344269,1745946647247,-150.0,0.00027672,2]
[359344270,1745946647257,-500.0,0.00027673,5]
[359344271,1745946647269,-500.0,0.00027673,5]
[359344272,1745946647279,-500.0,0.00027673,5]
[359344273,1745946647288,-500.0,0.00027673,5]
[359344274,1745946647298,-464.48225862,0.00027673,5]
[359344275,1745946647307,-500.0,0.00027673,5]
[359344276,1745946647317,-300.0,0.00027673,2]
[359344277,1745946647326,-502.6595318,0.00027673,5]
[359344278,1745946647335,-500.0,0.00027673,5]
[359344279,1745946647345,-500.0,0.00027673,5]
[359344280,1745946647354,-176.82340883,0.00027673,5]
[359344281,1745946647363,-186.97374249,0.00027673,5]
[359344282,1745946647372,-500.0,0.00027673,5]
[359344283,1745946647381,-501.55466909,0.00027673,5]
[359344284,1745946647391,-500.0,0.00027673,5]
[359344285,1745946647400,-500.0,0.00027673,5]
[359344286,1745946647409,-150.0,0.00027686,2]
[359344287,1745946647419,-150.0,0.00027687,2]
[359344288,1745946647428,-150.0,0.000277,2]
[359344289,1745946647437,-150.0,0.00027701,2]
[359344290,1745946647447,-150.0,0.00027701,2]
[359344291,1745946647456,-150.0,0.00027704,2]
[359344292,1745946647466,-150.0,0.00027705,2]
[359344293,1745946647476,-150.0,0.00027705,2]
[359344294,1745946647485,-150.0,0.00027708,2]
[359344295,1745946647495,-150.0,0.00027711,2]
[359344296,1745946647504,-150.0,0.00027712,2]
[359344297,1745946647514,-150.0,0.00027712,2]
[359344298,1745946647524,-150.0,0.00027715,2]
[359344299,1745946647533,-150.0,0.00027717,2]
[359344300,1745946647542,-150.0,0.00027718,2]
[359344301,1745946647552,-150.0,0.00027731,2]
[359344302,1745946647561,-150.0,0.00027738,2]
[359344303,1745946647570,-150.0,0.00027739,2]
[359344304,1745946647579,-150.0,0.00027741,2]
[359344305,1745946647588,-150.0,0.00027743,2]
[359344306,1745946647598,-4130.51247808,0.00027747,2]
[359344307,1745946647607,-150.0,0.00027748,2]
[359344308,1745946647616,-150.0,0.0002775,2]
[359344309,1745946647626,-150.0,0.00027752,2]
[359344310,1745946647635,-150.0,0.00027752,2]
[359344311,1745946647645,-150.0,0.00027755,2]
[359344312,1745946647654,-150.0,0.00027756,2]
[359344313,1745946647664,-150.0,0.00027763,2]
[359344314,1745946647674,-150.0,0.00027767,2]
[359344315,1745946647683,-150.0,0.00027767,2]
[359344316,1745946647692,-10217.54334314,0.00027769,2]
[359344317,1745946647701,-150.0,0.00027773,2]
[359344318,1745946647711,-150.0,0.00027774,2]
[359344319,1745946647720,-150.0,0.00027775,2]
[359344320,1745946647730,-151.0,0.00027776,7]
[359344321,1745946647739,-150.0,0.00027777,2]
[359344322,1745946647748,-150.0,0.00027777,2]
[359344323,1745946647758,-150.0,0.00027778,2]
[359344324,1745946647767,-500.0,0.00027781,2]
[359344325,1745946647776,-150.0,0.00027782,2]
[359344326,1745946647785,-150.0,0.00027783,2]
[359344327,1745946647795,-150.0,0.00027783,2]
[359344328,1745946647805,-150.0,0.00027789,2]
[359344329,1745946647814,-150.0,0.00027789,2]
[359344330,1745946647824,-150.0,0.00027792,2]
[359344331,1745946647834,-150.0,0.00027792,2]
[359344332,1745946647843,-150.0,0.00027792,2]
[359344333,1745946647852,-150.0,0.00027793,2]
[359344334,1745946647861,-150.0,0.00027794,2]
[359344335,1745946647870,-150.0,0.00027799,2]
[359344336,1745946647880,-150.0,0.00027799,2]
[359344337,1745946647889,-150.0,0.000278,2]
[359344338,1745946647899,-150.0,0.00027802,2]
[359344339,1745946647908,-150.0,0.00027804,2]
[359344340,1745946647917,-150.0,0.00027808,2]
[359344341,1745946647927,-150.0,0.00027809,2]
[359344342,1745946647936,-150.0,0.00027811,2]
[359344343,1745946647946,-150.0,0.00027814,2]
[359344344,1745946647956,-150.0,0.00027814,2]
[359344345,1745946647966,-150.0,0.00027815,2]
[359344346,1745946647975,-150.0,0.00027818,2]
[359344347,1745946647984,-150.0,0.00027821,2]
[359344348,1745946647994,-150.0,0.00027822,2]
[359344349,1745946648005,-150.0,0.00027826,2]
[359344350,1745946648015,-150.0,0.00027827,2]
[359344351,1745946648024,-150.0,0.00027827,2]
[359344352,1745946648034,-150.0,0.00027828,2]
[359344353,1745946648044,-150.0,0.00027829,2]
[359344354,1745946648054,-150.0,0.0002783,2]
[359344355,1745946648064,-150.0,0.00027843,2]
[359344356,1745946648073,-150.0,0.00027844,2]
[359344357,1745946648083,-313.26217831,0.00027845,2]
[359344358,1745946648092,-150.0,0.00027846,2]
[359344359,1745946648101,-150.0,0.0002785,2]
[359344360,1745946648111,-150.0,0.00027855,2]
[359344361,1745946648121,-150.0,0.00027857,2]
[359344362,1745946648130,-150.0,0.0002786,2]
[359344363,1745946648140,-150.0,0.00027863,2]
[359344364,1745946648150,-150.0,0.00027864,2]
[359344365,1745946648159,-150.0,0.00027869,2]
[359344366,1745946648169,-150.0,0.00027873,2]
[359344367,1745946648179,-150.0,0.00027879,2]
[359344368,1745946648190,-150.0,0.0002788,2]
[359344369,1745946648201,-150.0,0.00027889,2]
[359344370,1745946648211,-300.0,0.00027894,2]
[359344371,1745946648220,-150.0,0.00027894,2]
[359344372,1745946648230,-150.0,0.00027894,2]
[359344373,1745946648240,-150.0,0.00027894,2]
[359344374,1745946648249,-150.0,0.00027898,2]
[359344375,1745946648258,-150.0,0.00027898,2]
[359344376,1745946648268,-150.0,0.00027899,2]
[359344377,1745946648277,-4130.51247808,0.000279,2]
[359344378,1745946648287,-150.0,0.000279,2]
[359344379,1745946648296,-150.0,0.00027905,2]
[359344380,1745946648305,-150.0,0.00027911,2]
[359344381,1745946648315,-150.0,0.00027913,2]
[359344382,1745946648324,-996.56,0.0002792,2]
[359344383,1745946648333,-151.0,0.00027921,7]
[359344384,1745946648344,-248.022514,0.00027921,7]
[359344385,1745946648354,-151.0,0.00027921,7]
[359344386,1745946648363,-151.0,0.00027921,7]
[359344387,1745946648373,-150.0,0.00027921,2]
[359344388,1745946648382,-177.852795,0.00027921,7]
[359344389,1745946648392,-183.022425,0.00027921,7]
[359344390,1745946648401,-183.022425,0.00027921,7]
[359344391,1745946648411,-150.0,0.00027922,2]
[359344392,1745946648420,-150.0,0.00027923,2]
[359344393,1745946648429,-150.0,0.00027925,2]
[359344394,1745946648439,-486.86708499,0.00027927,2]
[359344395,1745946648449,-150.0,0.00027928,2]
[359344396,1745946648459,-151.0,0.0002793,7]
[359344397,1745946648468,-183.022425,0.0002793,7]
[359344398,1745946648478,-183.022425,0.0002793,7]
[359344399,1745946648487,-562.67,0.0002793,2]
[359344400,1745946648497,-802.1020962,0.00027931,2]
[359344401,1745946648507,-459.60540936,0.00027931,2]
[359344402,1745946648517,-175016.8688306,0.00027931,2]
[359344403,1745946648527,-14125.6081351,0.00027931,2]
[359344404,1745946648536,-80754.5752626,0.00027931,2]
[359344405,1745946648545,-5762.1734967,0.00027931,2]
[359344406,1745946648555,-151.0,0.00027931,7]
[359344407,1745946648566,-6154.9470964,0.00027931,2]
[359344408,1745946648575,-151.0,0.00027931,7]
[359344409,1745946648585,-151.0,0.00027931,7]
[359344410,1745946648595,-174.772255,0.00027931,7]
[359344411,1745946648605,-174.772255,0.00027931,7]
[359344412,1745946648614,-151.0,0.00027931,7]
[359344413,1745946648624,-151.0,0.00027931,7]
[359344414,1745946648634,-150.0,0.00027931,2]
[359344415,1745946648643,-183.022425,0.00027931,7]
[359344416,1745946648804,-183.022425,0.00027931,7]
[359344417,1745946648815,-151.0,0.00027931,7]
[359344418,1745946648824,-150.0,0.00027933,2]
[359344419,1745946648834,-150.0,0.00027933,2]
[359344420,1745946648844,-150.0,0.00027933,2]
[359344421,1745946648854,-150.0,0.00027934,2]
[359344422,1745946648863,-562.67,0.00027934,2]
[359344423,1745946648873,-151.0,0.00027935,7]
[359344424,1745946648883,-151.0,0.00027935,7]
[359344425,1745946648894,-151.0,0.00027935,7]
[359344426,1745946648904,-174.772255,0.00027935,7]
[359344427,1745946648913,-174.772255,0.00027935,7]
[359344428,1745946648923,-151.04397921,0.00027937,2]
[359344429,1745946648933,-562.67,0.00027939,2]
[359344430,1745946648943,-151.0,0.0002794,7]
[359344431,1745946648953,-500.0,0.00027944,2]
[359344432,1745946648962,-500.0,0.00027944,2]
[359344433,1745946648973,-500.0,0.00027944,2]
[359344434,1745946648987,-69699.76,0.00027944,2]
[359344435,1745946648997,-9769.38,0.00027944,2]
[359344436,1745946649007,-4973.44,0.00027944,2]
[359344437,1745946649017,-1095.01,0.00027944,2]
[359344438,1745946649027,-2962.6,0.00027944,2]
[359344439,1745946649038,-183.022425,0.00027944,7]
[359344440,1745946649048,-183.022423,0.00027944,7]
[359344441,1745946649058,-562.67,0.00027944,2]
[359344442,1745946649068,-562.67,0.00027944,2]
[359344443,1745946649078,-172.467239,0.00027944,7]
[359344444,1745946649088,-283.66463137,0.00027944,2]
[359344445,1745946649097,-7947.791581,0.00027945,2]
[359344446,1745946649107,-777.698462,0.00027945,2]
[359344447,1745946649117,-470.0,0.00027945,2]